bitfinex/quotes_ETHUSD_20240713
["timestamp","ask_amount","ask_price","bid_price","bid_amount"]
[1720902619029,1.09276343,3170.5,3170.4,0.804]
[1720902619213,1.09276343,3170.7,3170.4,0.804]
[1720902619537,1.09276343,3170.6,3170.4,0.804]
[1720902619720,1.09276343,3170.5,3170.4,0.804]
[1720902619920,1.09276343,3170.7,3170.4,0.804]
[1720902620111,1.09276343,3170.6,3170.4,0.804]
[1720902620311,1.09276343,3170.5,3170.4,0.804]
[1720902620514,1.09276343,3170.7,3170.4,0.804]
[1720902620709,1.09277443,3170.6,3170.4,0.804]
[1720902620941,1.09277443,3170.5,3170.4,0.804]
[1720902621126,1.09277443,3170.7,3170.4,0.804]
[1720902621323,1.09277443,3170.6,3170.4,0.804]
[1720902621655,1.09277443,3170.5,3170.4,0.804]
[1720902624038,0.33010101,3170.8,3170.4,0.804]
[1720902624227,1.09276506,3170.7,3170.4,3.01191]
[1720902624431,1.09276506,3170.6,3170.5,2.2965]
[1720902626754,0.33010101,3170.8,3170.5,2.2965]
[1720902626952,1.09275482,3170.7,3170.5,2.2965]
[1720902627126,1.09275482,3170.6,3170.5,2.2965]
[1720902627326,0.33010101,3170.8,3170.5,2.2965]
[1720902627644,1.09275559,3170.7,3170.5,2.2965]
[1720902627850,1.09275559,3170.6,3170.5,2.2965]
[1720902630728,0.33010101,3170.8,3170.5,2.2965]
[1720902631049,1.09275748,3170.7,3170.5,2.2965]
[1720902631246,1.09275748,3170.6,3170.5,2.2965]
[1720902634237,1.09275802,3170.6,3170.5,2.2965]
[1720902634681,2.3731,3170.7,3170.2,0.804]
[1720902634900,1.09275531,3170.6,3170.3,2.20797]
[1720902635195,2.32301676,3170.4,3169.9,11.83642]
[1720902635375,1.09275531,3170.3,3170.0,2.20819]
[1720902635541,1.09275531,3170.2,3170.0,2.20819]
[1720902635741,1.09275531,3170.1,3170.0,2.20819]
[1720902636648,1.09275531,3170.3,3170.0,2.20819]
[1720902636977,1.09275531,3170.2,3170.0,2.20819]
[1720902637191,1.09291638,3170.2,3170.0,2.20819]
[1720902637341,1.09291496,3170.1,3170.0,2.20819]
[1720902638471,1.09291496,3170.1,3170.0,2.970642]
[1720902640603,1.0928673,3170.1,3170.0,2.970642]
[1720902644100,1.09288094,3170.1,3170.0,2.970642]
[1720902644482,1.09287573,3170.1,3170.0,2.970642]
[1720902644990,1.09287573,3170.1,3170.0,2.20819]
[1720902646619,2.3731,3170.7,3170.0,2.20819]
[1720902646865,3.41377571,3170.6,3170.0,2.20819]
[1720902647417,1.09289756,3170.5,3170.0,2.20819]
[1720902650620,1.09290636,3170.4,3170.0,2.20819]
[1720902650769,1.09290636,3170.3,3169.9,0.804]
[1720902651115,1.09290636,3170.5,3169.9,3.01227]
[1720902651315,1.09290636,3170.4,3169.9,3.01227]
[1720902651472,1.09290636,3170.5,3169.9,3.01227]
[1720902652705,2.3731,3170.7,3169.9,3.01227]
[1720902652920,0.2703201,3170.6,3169.9,3.01227]
[1720902653684,1.09293036,3170.5,3169.9,3.01227]
[1720902655034,1.09292836,3170.4,3169.9,3.01227]
[1720902655213,1.0929299,3170.3,3169.9,3.01227]
[1720902655535,1.09293146,3170.2,3169.9,0.804]
[1720902655741,1.09293146,3170.1,3169.9,0.804]
[1720902656034,1.09293146,3170.5,3169.9,0.804]
[1720902656224,1.09294139,3170.4,3169.9,0.804]
[1720902656447,1.09294139,3170.3,3169.9,0.804]
[1720902656599,1.09300131,3170.2,3169.6,2.3378]
[1720902656802,3.41363497,3170.1,3169.5,7.42]
[1720902657095,3.41363497,3170.0,3169.5,7.42]
[1720902657299,1.09300131,3169.9,3169.5,7.42]
[1720902657482,1.09300131,3169.8,3169.5,7.42]
[1720902657687,1.09300131,3170.0,3169.5,7.42]
[1720902658915,1.09300131,3170.0,3169.4,5.35041]
[1720902659932,2.31895808,3170.2,3169.4,5.35041]
[1720902660092,1.0930986,3170.1,3169.6,0.804]
[1720902660285,1.0930986,3170.0,3169.7,2.3378]
[1720902660503,1.0930986,3169.9,3169.7,2.3378]
[1720902660702,0.33009197,3170.3,3169.8,0.804]
[1720902660900,1.09299344,3170.2,3169.8,0.804]
[1720902661099,1.09299344,3170.1,3169.8,0.804]
[1720902661416,1.09299344,3170.0,3169.8,0.804]
[1720902661739,1.09299344,3170.2,3169.8,0.804]
[1720902661911,1.09299344,3170.1,3169.8,0.804]
[1720902662115,1.09299344,3170.2,3169.8,0.804]
[1720902662422,0.33009197,3170.3,3169.8,0.804]
[1720902662423,1.09300802,3170.1,3169.8,0.804]
[1720902662618,1.09300802,3170.0,3169.8,0.804]
[1720902662837,1.09300802,3170.2,3169.8,0.804]
[1720902663035,1.09300802,3169.9,3169.8,0.804]
[1720902665724,1.09300802,3169.9,3169.7,2.3378]
[1720902665725,1.09300633,3169.9,3169.7,2.3378]
[1720902665923,1.09300633,3169.8,3169.7,2.3378]
[1720902666124,1.09302187,3169.8,3169.7,2.3378]
[1720902666302,1.09302187,3169.8,3169.6,3.1418]
[1720902666497,1.09302187,3169.7,3169.6,3.1418]
[1720902666702,1.09302187,3170.2,3169.6,3.1418]
[1720902667956,2.4048,3170.1,3169.5,2.20854]
[1720902668159,1.09302187,3170.0,3169.4,3.01261]
[1720902668366,1.09308474,3169.9,3169.4,3.01261]
[1720902668654,1.09308474,3169.8,3169.4,3.01261]
[1720902668827,1.09308474,3170.0,3169.4,3.01261]
[1720902669032,2.4048,3170.1,3169.4,3.534744]
[1720902669033,1.09310435,3169.9,3169.4,3.534744]
[1720902669357,1.09310435,3169.8,3169.4,3.534744]
[1720902669653,1.09310435,3169.7,3169.4,3.534744]
[1720902669817,1.09310435,3169.6,3169.4,3.534744]
[1720902670012,2.4048,3170.1,3169.5,0.3534744]
[1720902670218,1.09309338,3170.0,3169.4,3.01261]
[1720902670419,1.09309338,3169.9,3169.4,3.01261]
[1720902670617,1.09309338,3169.8,3169.4,3.01261]
[1720902670814,1.09309338,3170.0,3169.4,3.1418]
[1720902675474,1.09314891,3169.9,3169.4,3.1418]
[1720902675673,2.91008678,3170.1,3169.4,3.1418]
[1720902675890,1.09312281,3170.0,3169.4,3.1418]
[1720902676073,1.09312281,3169.9,3169.4,3.1418]
[1720902676276,2.4048,3170.1,3169.4,3.1418]
[1720902676277,1.09312825,3169.8,3169.4,3.1418]
[1720902676494,1.09312825,3169.7,3169.4,3.1418]
[1720902676707,1.09312825,3169.6,3169.4,3.1418]
[1720902676996,1.09312825,3169.5,3169.4,3.1418]
[1720902677201,1.09312825,3170.0,3169.4,3.1418]
[1720902678216,1.67470455,3170.0,3169.4,3.1418]
[1720902678375,1.09312825,3169.9,3169.4,3.1418]
[1720902678697,1.09313904,3169.8,3169.4,3.1418]
[1720902678861,2.4048,3170.1,3169.4,3.1418]
[1720902678862,1.09313904,3169.7,3169.4,3.1418]
[1720902679060,2.4048,3170.1,3169.4,3.1418]
[1720902679272,1.09314555,3170.0,3169.4,3.1418]
[1720902679606,1.09314555,3169.9,3169.4,3.1418]
[1720902679760,1.09314555,3169.8,3169.4,3.1418]
[1720902679963,1.09314555,3170.0,3169.4,3.1418]
[1720902680157,1.09314555,3169.9,3169.4,3.1418]
[1720902680392,1.09314555,3170.0,3169.4,3.1418]
[1720902680596,1.09314555,3169.9,3169.4,3.1418]
[1720902680859,1.09314555,3169.8,3169.4,3.1418]
[1720902681059,1.09314555,3169.7,3169.4,3.1418]
[1720902681294,1.09314555,3169.6,3169.4,3.1418]
[1720902681473,1.09314555,3170.0,3169.4,3.1418]
[1720902681676,1.09314555,3169.9,3169.4,3.1418]
[1720902681871,1.09314555,3169.8,3169.4,3.1418]
[1720902682073,2.4048,3170.1,3169.4,3.1418]
[1720902682271,1.09313173,3170.0,3169.4,2.3378]
[1720902682516,1.09318503,3169.9,3169.4,2.3378]
[1720902682865,1.09318503,3169.8,3169.4,2.3378]
[1720902683108,1.09318503,3169.9,3169.4,2.3378]
[1720902683314,1.09318503,3169.8,3169.4,2.3378]
[1720902683610,1.09318503,3169.7,3169.4,2.3378]
[1720902683765,1.09318503,3169.9,3169.4,2.3378]
[1720902683967,1.09318503,3169.8,3169.4,2.3378]
[1720902684181,1.09318503,3169.7,3169.4,2.3378]
[1720902684369,1.09318503,3169.9,3169.4,2.3378]
[1720902684569,1.09318503,3169.8,3169.4,2.3378]
[1720902684772,1.09318503,3169.9,3169.4,2.3378]
[1720902685013,1.09318503,3169.8,3169.4,2.3378]
[1720902685193,1.09318503,3169.7,3169.4,2.3378]
[1720902685371,1.09318503,3169.9,3169.4,2.3378]
[1720902685705,0.33012031,3170.0,3169.4,2.3378]
[1720902685910,1.09317874,3169.9,3169.4,2.3378]
[1720902686218,1.09318769,3169.8,3169.4,2.3378]
[1720902686366,1.09318769,3169.7,3169.4,2.3378]
[1720902686566,1.09318769,3169.6,3169.4,2.3378]
[1720902686769,1.09318769,3169.5,3169.4,2.3378]
[1720902688620,1.09317637,3169.5,3169.4,2.3378]
[1720902689113,1.0931723,3169.5,3169.4,2.3378]
[1720902692274,0.33012031,3170.0,3169.4,2.3378]
[1720902692484,1.09315969,3169.9,3169.4,2.3378]
[1720902692711,1.09315969,3169.8,3169.4,2.3378]
[1720902692942,1.09315969,3169.7,3169.4,2.3378]
[1720902693220,1.09315969,3169.6,3169.4,2.3378]
[1720902693424,1.09315969,3169.5,3169.4,2.3378]
[1720902695399,1.09315969,3169.5,3169.2,3.0956]
[1720902695597,0.33012031,3170.0,3169.2,4.368042]
[1720902695795,0.33012031,3170.0,3169.2,3.0956]
[1720902695796,1.0931934,3169.9,3169.2,3.0956]
[1720902695991,1.0931934,3169.8,3169.2,3.0956]
[1720902696332,1.0931933,3169.7,3169.2,3.0956]
[1720902696624,1.0931933,3169.6,3169.2,3.0956]
[1720902696796,1.0931933,3169.5,3169.2,4.368042]
[1720902697000,1.0931933,3169.4,3169.2,4.368042]
[1720902697315,1.0931933,3169.3,3169.2,4.368042]
[1720902697713,1.0931933,3169.3,3169.2,3.0956]
[1720902698520,1.09318776,3169.3,3169.2,3.0956]
[1720902699238,1.09318098,3169.3,3169.2,3.0956]
[1720902702447,1.09318245,3169.3,3169.2,3.0956]
[1720902702748,1.09318264,3169.7,3169.2,3.0956]
[1720902702926,1.09318264,3169.6,3168.8,2.2916]
[1720902703259,1.09318264,3169.6,3168.6,7.7363]
[1720902703260,2.32146652,3169.4,3168.6,10.0279]
[1720902703542,3.41464916,3169.3,3168.6,10.0279]
[1720902703697,1.09318264,3169.2,3168.6,10.0279]
[1720902704044,1.09318264,3169.1,3168.6,10.0279]
[1720902704203,1.09318264,3169.0,3168.6,10.0279]
[1720902704401,1.09318264,3169.2,3168.6,10.0279]
[1720902704699,1.09318264,3169.1,3168.6,10.0279]
[1720902704902,1.09318264,3169.0,3168.6,10.0279]
[1720902705098,1.09318264,3169.2,3168.6,10.0279]
[1720902705344,1.09318264,3169.1,3168.6,10.0279]
[1720902705539,1.09318264,3169.2,3168.6,10.0279]
[1720902705761,1.09340203,3169.1,3168.6,10.0279]
[1720902706060,1.09340203,3169.0,3168.6,10.0279]
[1720902706228,1.09339985,3168.9,3168.6,10.0279]
[1720902706425,1.09339985,3168.8,3168.6,10.0279]
[1720902706626,1.09339985,3169.3,3168.6,9.9779]
[1720902706831,1.47694745,3169.2,3168.6,9.9779]
[1720902707029,1.09339985,3169.1,3168.6,10.7819]
[1720902708536,1.09339306,3169.0,3168.6,10.7819]
[1720902708763,1.09339306,3168.9,3168.6,10.7819]
[1720902708927,0.42223826,3169.4,3168.6,10.7819]
[1720902709276,1.7134403,3169.3,3168.6,10.7819]
[1720902709413,1.09339349,3169.2,3168.6,10.7819]
[1720902712362,0.62004681,3169.3,3168.6,10.7819]
[1720902712661,1.09339733,3169.2,3168.6,10.7819]
[1720902713038,1.09339733,3169.1,3168.6,10.7819]
[1720902713244,1.09339733,3169.0,3168.6,10.7819]
[1720902713440,1.09339733,3168.9,3168.6,10.7819]
[1720902713679,1.09339733,3168.8,3168.6,10.7819]
[1720902713894,1.09339733,3169.2,3168.6,10.7819]
[1720902714105,1.09339733,3169.1,3168.6,10.7819]
[1720902714388,1.09339733,3169.0,3168.6,10.7819]
[1720902714575,1.09339733,3168.9,3168.6,10.7819]
[1720902714779,1.09339733,3168.8,3168.6,10.7819]
[1720902714956,1.09339733,3168.7,3168.6,10.7819]
[1720902715155,1.09339733,3168.7,3168.6,3.3619]
[1720902715489,0.62004681,3169.3,3168.6,3.3619]
[1720902715696,1.09340427,3168.7,3168.6,3.3619]
[1720902716001,1.09340481,3168.7,3168.6,3.3619]
[1720902716349,1.09340076,3168.7,3168.6,3.3619]
[1720902718191,1.09340076,3168.7,3168.6,2.5579]
[1720902718378,1.09340076,3168.7,3168.6,3.3619]
[1720902718878,1.09338244,3168.7,3168.6,3.3619]
[1720902719390,1.09337461,3168.7,3168.6,3.3619]
[1720902721908,1.09339593,3168.7,3168.6,3.3619]
[1720902722053,1.09339593,3169.2,3168.6,3.3619]
[1720902722389,1.09339593,3169.2,3168.6,2.2916]
[1720902722390,1.09339593,3169.1,3168.6,2.2916]
[1720902725209,1.09341995,3169.0,3168.6,2.2916]
[1720902725495,0.17134427,3169.2,3168.6,2.2916]
[1720902725496,1.09341995,3168.9,3168.6,2.2916]
[1720902725717,1.09341995,3168.8,3168.6,2.2916]
[1720902725857,1.09341995,3169.1,3168.6,2.2916]
[1720902726403,1.28190105,3169.1,3168.6,2.2916]
[1720902726584,1.09341995,3169.0,3168.6,2.2916]
[1720902726797,1.09341995,3168.9,3168.6,2.2916]
[1720902727010,1.09341995,3168.8,3168.6,2.2916]
[1720902727204,1.09341995,3169.0,3168.6,2.2916]
[1720902727415,1.09341995,3168.9,3168.6,2.2916]
[1720902727614,1.09341995,3168.8,3168.6,2.2916]
[1720902727764,1.09341995,3168.7,3168.6,2.2916]
[1720902727962,1.09341894,3168.7,3168.6,2.2916]
[1720902728399,0.17134427,3169.2,3168.6,2.2916]
[1720902728719,2.4442,3169.0,3168.0,9.62957]
[1720902728877,2.4442,3169.0,3168.0,7.42]
[1720902728878,0.804,3168.8,3168.0,7.42]
[1720902729080,0.804,3168.6,3168.0,7.42]
[1720902729390,1.09340717,3168.5,3168.0,7.42]
[1720902729561,0.35376072,3168.5,3168.0,7.42]
[1720902729766,1.09340717,3168.4,3168.0,7.42]
[1720902731666,0.35376072,3168.5,3168.0,7.42]
[1720902731892,1.0936441,3168.4,3168.0,7.42]
[1720902732103,1.0936441,3168.3,3168.0,7.42]
[1720902732306,1.0936441,3168.4,3168.0,7.42]
[1720902732509,1.0936441,3168.3,3168.0,7.42]
[1720902732816,1.0936441,3168.2,3168.0,7.42]
[1720902733168,1.0936441,3168.1,3167.9,0.804]
[1720902733495,1.0936441,3168.0,3167.9,0.804]
[1720902733666,0.35376072,3168.5,3167.9,0.804]
[1720902733667,1.0936441,3168.4,3167.9,0.804]
[1720902733994,1.0936441,3168.3,3167.9,0.804]
[1720902734200,1.0936441,3168.2,3167.9,0.804]
[1720902734411,1.0936441,3168.1,3167.9,0.804]
[1720902734582,1.0936441,3168.0,3167.9,0.804]
[1720902734911,1.0936441,3168.4,3167.9,0.804]
[1720902735070,1.09365124,3168.3,3167.9,0.804]
[1720902735269,0.35376072,3168.5,3167.9,0.804]
[1720902735270,1.09365124,3168.2,3167.9,0.804]
[1720902735467,0.35376072,3168.5,3167.9,0.804]
[1720902735671,1.09365034,3168.4,3167.9,0.804]
[1720902735983,1.09365034,3168.3,3167.9,0.804]
[1720902736183,1.09365034,3168.2,3167.9,0.804]
[1720902736381,1.09365034,3168.4,3167.9,0.804]
[1720902737917,1.0936443,3168.3,3167.9,0.804]
[1720902738084,1.0936443,3168.2,3167.9,0.804]
[1720902738426,0.35376072,3168.5,3167.9,0.804]
[1720902738581,1.09365111,3168.4,3167.9,0.804]
[1720902738785,1.09365111,3168.3,3167.9,0.804]
[1720902738971,1.09365111,3168.2,3167.9,0.804]
[1720902739174,1.09365111,3168.4,3167.9,0.804]
[1720902739383,1.09365111,3168.3,3167.9,0.804]
[1720902739613,1.09365111,3168.2,3167.9,0.804]
[1720902739772,1.09365111,3168.1,3167.9,0.804]
[1720902739973,1.09365111,3168.0,3167.9,0.804]
[1720902741711,0.17776431,3168.4,3167.9,0.804]
[1720902741874,1.0936526,3168.3,3167.9,0.804]
[1720902742069,1.0936526,3168.2,3167.9,0.804]
[1720902742409,1.0936526,3168.1,3167.9,0.804]
[1720902742593,1.0936526,3168.0,3167.9,0.804]
[1720902744977,1.09363202,3168.0,3167.9,0.804]
[1720902745713,1.09364208,3168.4,3167.9,0.804]
[1720902745878,1.09364208,3168.3,3167.9,0.804]
[1720902746080,1.09364208,3168.2,3167.9,0.804]
[1720902746314,1.09364208,3168.1,3167.9,0.804]
[1720902746514,0.35376072,3168.5,3167.9,0.804]
[1720902746515,1.09364208,3168.0,3167.9,0.804]
[1720902747814,1.09363486,3168.0,3167.9,0.804]
[1720902748183,0.35376072,3168.5,3167.9,0.804]
[1720902748385,1.09363661,3168.4,3167.9,0.804]
[1720902748718,1.09363661,3168.3,3167.9,0.804]
[1720902751609,0.17776286,3168.4,3167.9,0.804]
[1720902751938,1.09363917,3168.3,3167.9,0.804]
[1720902752129,1.09363917,3168.2,3167.9,0.804]
[1720902752331,1.09363917,3168.4,3167.9,0.804]
[1720902752532,1.09363917,3168.3,3167.9,0.804]
[1720902752731,1.09363917,3168.4,3167.9,0.804]
[1720902753144,1.27140228,3168.4,3167.9,0.804]
[1720902753339,1.09363917,3168.3,3167.9,0.804]
[1720902755129,1.09365467,3168.2,3167.9,0.804]
[1720902755337,1.09365467,3168.1,3167.9,0.804]
[1720902755533,1.09364739,3168.0,3167.9,0.804]
[1720902757861,1.09362789,3168.0,3167.9,0.804]
[1720902758247,0.35376072,3168.5,3167.9,0.804]
[1720902758555,1.09362207,3168.4,3167.9,0.804]
[1720902758735,1.09362207,3168.3,3168.0,2.3933]
[1720902758943,1.09362207,3168.2,3168.0,2.3933]
[1720902759153,1.09362207,3168.1,3168.0,2.3933]
[1720902759446,0.35376072,3168.5,3168.0,2.3933]
[1720902759447,1.09362207,3168.4,3168.0,2.3933]
[1720902759750,1.09362207,3168.3,3168.0,2.3933]
[1720902759946,1.09362207,3168.2,3168.0,2.3933]
[1720902760147,1.09362207,3168.1,3168.0,2.3933]
[1720902760309,1.09362207,3168.4,3168.0,2.3933]
[1720902760656,1.09362207,3168.3,3168.0,2.3933]
[1720902760864,1.09362207,3168.2,3168.0,2.3933]
[1720902761219,1.09362207,3168.1,3168.0,2.3933]
[1720902761619,1.09363243,3168.1,3168.0,2.3933]
[1720902764956,0.35376072,3168.5,3168.0,2.3933]
[1720902765160,1.09363429,3168.4,3168.0,2.3933]
[1720902765330,0.35376072,3168.5,3168.0,2.3933]
[1720902765539,1.09362997,3168.4,3168.0,2.3933]
[1720902765746,1.09362997,3168.3,3168.0,2.3933]
[1720902765946,1.09362997,3168.2,3168.0,2.3933]
[1720902766146,1.09362997,3168.1,3168.0,2.3933]
[1720902766569,1.09362997,3168.4,3168.0,2.3933]
[1720902766736,1.09362997,3168.3,3168.0,2.3933]
[1720902766937,1.09362997,3168.2,3167.9,2.20966]
[1720902767156,1.09362997,3168.1,3167.9,2.20966]
[1720902767358,1.09362997,3168.0,3167.8,2.3933]
[1720902767559,0.35376072,3168.5,3167.8,2.3933]
[1720902767869,1.36092252,3168.4,3167.8,2.3933]
[1720902768079,1.09366021,3168.3,3167.8,2.3933]
[1720902768289,1.09366009,3168.2,3167.8,2.3933]
[1720902768568,1.09366009,3168.1,3167.8,4.60303]
[1720902768766,1.09366009,3168.0,3167.8,4.60303]
[1720902768968,1.09366009,3168.3,3167.8,4.60303]
[1720902769133,1.09366009,3168.2,3167.8,4.60303]
[1720902769334,1.09366009,3168.1,3167.8,4.60303]
[1720902769529,1.09366009,3168.0,3167.8,4.60303]
[1720902769733,1.09366009,3167.9,3167.8,2.3933]
[1720902771470,2.59246231,3168.4,3167.8,2.3933]
[1720902771676,1.38828813,3168.3,3167.8,2.3933]
[1720902771972,1.09366583,3168.2,3167.8,2.3933]
[1720902772162,0.2946223,3168.3,3167.5,9.8133]
[1720902772163,1.09366583,3168.1,3167.5,9.8133]
[1720902772473,1.09366583,3168.0,3167.6,0.804]
[1720902772769,1.09366583,3168.2,3167.6,0.804]
[1720902772977,1.09366583,3168.1,3167.6,0.804]
[1720902773195,1.09366583,3168.0,3167.6,0.804]
[1720902773346,1.09366583,3168.2,3167.6,3.01387]
[1720902773547,1.09366583,3168.1,3167.6,3.01387]
[1720902773747,1.09366583,3168.0,3167.6,3.01387]
[1720902773976,1.09366583,3168.2,3167.6,3.01387]
[1720902774185,1.09366583,3168.1,3167.6,3.01387]
[1720902774483,1.09366583,3168.0,3167.6,3.01387]
[1720902774847,1.09367155,3167.9,3167.6,3.01387]
[1720902775166,0.60348788,3168.2,3167.6,3.01387]
[1720902775363,1.09367202,3167.8,3167.6,3.01387]
[1720902775583,1.09367202,3167.7,3167.6,3.01387]
[1720902775886,1.09368957,3167.7,3167.6,0.804]
[1720902776278,1.09368957,3168.1,3167.6,0.804]
[1720902776475,1.09368957,3168.0,3167.6,0.804]
[1720902776686,1.09368957,3167.9,3167.6,0.804]
[1720902776864,1.09368957,3168.1,3167.6,0.804]
[1720902777068,1.09368957,3168.0,3167.6,0.804]
[1720902777267,1.09368957,3167.9,3167.6,0.804]
[1720902777470,1.09368957,3168.1,3167.6,0.804]
[1720902777660,1.09371657,3168.0,3167.6,0.804]
[1720902777994,1.09371657,3167.9,3167.6,0.804]
[1720902778150,1.09371657,3168.1,3167.6,0.804]
[1720902778353,1.09371449,3168.0,3167.6,0.804]
[1720902778596,1.09371449,3167.9,3167.6,0.804]
[1720902778756,1.09371449,3168.1,3167.6,0.804]
[1720902778958,1.09371449,3168.0,3167.6,0.804]
[1720902779151,1.09371449,3167.9,3167.6,0.804]
[1720902779384,1.09371449,3168.1,3167.6,0.804]
[1720902779592,1.09371449,3168.0,3167.6,0.804]
[1720902779779,1.09371449,3168.1,3167.6,0.804]
[1720902779976,1.09371449,3168.0,3167.6,0.804]
[1720902780287,1.09371449,3167.9,3167.6,0.804]
[1720902780453,1.09371449,3168.0,3167.6,0.804]
[1720902780655,1.09371449,3167.9,3167.6,0.804]
[1720902780983,2.3252,3168.4,3167.6,0.804]
[1720902781293,2.32406915,3168.2,3167.6,0.804]
[1720902781491,1.09372862,3168.1,3167.6,0.804]
[1720902781704,1.09372862,3168.0,3167.6,0.804]
[1720902781863,1.09372862,3167.9,3167.6,0.804]
[1720902782060,1.09372862,3168.1,3167.6,0.804]
[1720902782382,1.09372862,3168.0,3167.6,0.804]
[1720902782579,1.09372862,3168.1,3167.6,0.804]
[1720902782783,1.09372862,3168.0,3167.6,0.804]
[1720902782972,1.09372862,3167.9,3167.6,0.804]
[1720902783173,1.09372862,3167.8,3167.6,0.804]
[1720902783392,1.09372862,3167.7,3167.6,0.804]
[1720902784205,0.23252,3168.3,3167.6,0.804]
[1720902784365,1.09371743,3167.7,3167.6,0.804]
[1720902784708,2.5794659,3168.2,3167.6,0.804]
[1720902784996,1.09373173,3168.1,3167.6,0.804]
[1720902785196,1.09373173,3168.0,3167.6,0.804]
[1720902785395,1.09373173,3167.9,3167.6,0.804]
[1720902785585,1.09373173,3167.8,3167.6,0.804]
[1720902785788,1.09373173,3168.1,3167.6,0.804]
[1720902785984,1.09373173,3168.0,3167.6,0.804]
[1720902787101,1.09371256,3167.9,3167.6,0.804]
[1720902787397,1.09371256,3167.8,3167.6,0.804]
[1720902787694,1.09371425,3167.7,3167.6,0.804]
[1720902790215,1.09371425,3167.7,3167.6,3.01387]
[1720902790711,0.255772,3168.2,3167.6,3.01387]
[1720902790873,1.09371824,3167.7,3167.6,3.01387]
[1720902791264,1.09371824,3168.1,3167.6,3.01387]
[1720902791465,1.09371824,3168.0,3167.6,3.01387]
[1720902794322,1.09371934,3167.9,3167.6,3.01387]
[1720902794471,1.09371934,3167.8,3167.6,3.01387]
[1720902794672,1.09371987,3167.7,3167.6,3.01387]
[1720902795958,1.09371987,3167.7,3167.6,7.60754]
[1720902796229,2.65428152,3168.8,3168.4,2.20926]
[1720902796535,1.09344032,3168.7,3168.6,2.20916]
[1720902796838,1.09344032,3168.7,3168.6,3.01316]
[1720902797132,2.32382051,3169.4,3168.8,2.20902]
[1720902797341,0.33045031,3169.6,3169.0,0.804]
[1720902797526,3.41605824,3169.5,3169.0,0.804]
[1720902797688,1.09328164,3169.4,3169.0,0.804]
[1720902797993,1.09328164,3169.3,3169.0,0.804]
[1720902798195,1.09328164,3169.2,3169.0,0.804]
[1720902798428,1.09328164,3169.1,3169.0,0.804]
[1720902798608,1.09328164,3169.5,3168.8,3.01302]
[1720902798931,2.2886,3169.3,3168.7,7.42]
[1720902799084,1.09328164,3169.2,3168.7,7.42]
[1720902800606,4.60773991,3169.3,3168.7,7.42]
[1720902800831,1.09341222,3169.2,3168.7,7.42]
[1720902801136,4.60773991,3169.3,3168.7,7.42]
[1720902801137,1.09341222,3169.1,3168.7,7.42]
[1720902801431,1.09341222,3169.0,3168.7,7.42]
[1720902801629,1.09341222,3169.0,3168.4,3.01325]
[1720902801630,1.09341222,3169.2,3168.4,3.01325]
[1720902801833,1.59427035,3169.2,3168.4,3.01325]
[1720902802144,1.09341222,3169.1,3168.4,3.01325]
[1720902803900,1.0934573,3169.0,3168.4,3.01325]
[1720902804144,1.0934573,3168.9,3168.4,3.01325]
[1720902804290,0.50085813,3169.2,3168.4,3.01325]
[1720902804291,1.0934573,3168.8,3168.4,3.01325]
[1720902804497,1.09344768,3168.7,3168.4,0.804]
[1720902804699,1.09344768,3168.6,3168.4,0.804]
[1720902805007,1.09344768,3168.5,3168.4,0.804]
[1720902805206,2.2886,3168.8,3168.3,7.42]
[1720902805509,1.09344768,3168.7,3168.3,7.42]
[1720902806843,1.09348204,3168.6,3168.4,0.804]
[1720902807138,2.87978315,3169.1,3168.4,0.804]
[1720902807139,1.09348204,3168.5,3168.4,0.804]
[1720902807336,1.0934479,3168.5,3168.4,0.804]
[1720902810710,1.09348465,3169.2,3168.4,0.804]
[1720902810913,1.43455107,3169.1,3168.4,0.804]
[1720902811113,1.09348465,3169.0,3168.4,0.804]
[1720902811449,1.09348465,3168.9,3168.6,0.804]
[1720902811632,1.09348465,3168.8,3168.6,0.804]
[1720902811809,1.09348465,3168.7,3168.6,0.804]
[1720902812834,1.09348465,3168.7,3168.4,3.01327]
[1720902813039,1.09348465,3168.6,3168.4,3.01327]
[1720902813256,1.09348465,3168.5,3168.4,3.01327]
[1720902814029,1.09346417,3168.5,3168.4,3.01327]
[1720902814462,1.09346413,3168.5,3168.4,8.381876]
[1720902816766,3.0,3169.4,3168.6,2.20911]
[1720902817053,1.09337122,3169.3,3168.7,2.20909]
[1720902817263,6.45129751,3169.6,3168.7,2.20909]
[1720902817431,1.97212433,3169.5,3168.7,2.20909]
[1720902817616,1.09336458,3169.4,3168.7,2.20909]
[1720902817817,1.09336458,3169.3,3168.7,2.20909]
[1720902818127,1.09336458,3169.2,3168.7,2.20909]
[1720902818343,1.09336458,3169.1,3168.7,2.20909]
[1720902818520,1.09336458,3169.0,3168.7,2.20909]
[1720902818721,1.09336458,3168.9,3168.7,2.20909]
[1720902818933,1.09336458,3168.8,3168.7,2.20909]
[1720902819134,1.09336458,3169.4,3168.7,2.20909]
[1720902819335,1.59057701,3169.3,3168.7,2.20909]
[1720902819535,1.09336458,3169.2,3168.7,2.20909]
[1720902819758,1.09336458,3169.1,3168.7,2.20909]
[1720902819967,1.09336458,3169.0,3168.7,2.20909]
[1720902820165,1.09336458,3168.9,3168.7,2.20909]
[1720902820460,1.09336458,3168.8,3168.7,5.13001]
[1720902820667,0.33045031,3169.6,3168.8,2.20902]
[1720902820972,1.0932852,3169.5,3168.8,2.20902]
[1720902821141,1.0932852,3169.4,3168.8,2.20902]
[1720902821460,1.0932852,3169.3,3168.8,2.20902]
[1720902821664,1.0932852,3169.5,3168.8,3.22457297]
[1720902821867,1.0932852,3169.4,3168.8,3.22457297]
[1720902822166,1.0932852,3169.3,3168.8,3.22457297]
[1720902822325,1.0932852,3169.2,3168.8,3.22457297]
[1720902822526,1.0932852,3169.1,3168.8,3.22457297]
[1720902822836,0.33045031,3169.6,3168.9,0.804]
[1720902822837,1.0932852,3169.0,3168.9,0.804]